bitfinex/quotes_ETHUSD_20250529
["timestamp","ask_amount","ask_price","bid_price","bid_amount"]
[1748551592642,0.34929539,2641.4,2640.5,10.55]
[1748551593154,0.34929539,2641.4,2640.5,10.0]
[1748551593851,0.34929539,2641.4,2638.5,0.19640965]
[1748551593852,0.34929539,2641.4,2639.4,10.0]
[1748551594055,0.9602,2641.3,2639.4,10.0]
[1748551594222,0.9602,2641.3,2639.5,10.0]
[1748551594419,0.9602,2641.3,2639.5,10.9602]
[1748551594769,0.9602,2641.3,2639.6,0.55]
[1748551595122,0.9602,2641.3,2639.8,0.55]
[1748551599229,0.9602,2641.3,2639.8,2.32293878]
[1748551599426,0.9602,2641.3,2640.1,0.3784]
[1748551599622,0.9602,2641.3,2640.1,1.043]
[1748551600339,0.9602,2641.3,2640.2,0.55]
[1748551600763,0.9602,2641.3,2640.4,0.55]
[1748551603385,0.9602,2641.3,2640.3,10.0]
[1748551603386,0.9602,2641.3,2640.6,0.55]
[1748551604495,0.9602,2641.3,2640.1,1.043]
[1748551604725,0.9602,2641.3,2640.2,0.55]
[1748551605361,0.9602,2641.3,2640.4,0.55]
[1748551606487,0.9602,2641.3,2640.3,0.55]
[1748551606646,0.9602,2641.3,2640.3,1.5114]
[1748551607489,0.9602,2641.3,2639.6,1.043]
[1748551608081,0.9602,2641.3,2639.7,0.55]
[1748551608275,0.9472,2641.1,2639.7,0.55]
[1748551608690,0.9472,2641.1,2639.6,1.043]
[1748551608890,0.9472,2641.1,2639.7,0.55]
[1748551612418,0.9472,2641.1,2639.6,1.043]
[1748551616994,0.9472,2641.1,2639.7,0.55]
[1748551617716,0.9472,2641.1,2639.6,1.042]
[1748551620234,0.9472,2641.1,2639.5,10.0]
[1748551620442,0.9472,2641.1,2639.4,1.4204]
[1748551623199,4.7,2641.3,2639.4,1.042]
[1748551623434,0.55,2641.0,2639.0,0.3784]
[1748551623649,0.55,2641.0,2638.9,10.0]
[1748551623650,0.55,2640.6,2638.9,10.0]
[1748551623931,0.9465,2640.5,2638.8,1.042]
[1748551624647,0.9602,2640.3,2638.8,1.042]
[1748551625129,0.9602,2640.3,2638.7,10.0]
[1748551625487,0.9602,2640.3,2638.6,10.19718494]
[1748551626410,0.9602,2640.3,2638.7,10.19642247]
[1748551626610,0.9602,2640.3,2638.7,0.19642247]
[1748551626799,0.9602,2640.3,2638.8,0.55]
[1748551626997,0.9602,2640.3,2638.8,1.4605]
[1748551629026,0.9602,2640.3,2638.8,10.0]
[1748551629397,0.9602,2640.3,2638.7,10.55]
[1748551631499,0.9602,2640.3,2638.6,10.19718494]
[1748551631899,0.9602,2640.3,2638.7,10.0]
[1748551632532,0.9602,2640.3,2638.6,10.19718494]
[1748551633340,0.9602,2640.3,2638.7,10.0]
[1748551633516,0.9602,2640.3,2638.6,10.19718494]
[1748551633711,0.9602,2640.3,2638.7,10.0]
[1748551633919,0.9602,2640.3,2638.6,10.19718494]
[1748551634311,0.9602,2640.3,2638.7,10.0]
[1748551634904,0.9602,2640.3,2638.6,10.19718494]
[1748551635100,0.55,2640.2,2638.6,10.19718494]
[1748551635418,0.9386,2640.1,2638.6,10.19718494]
[1748551635847,0.9386,2640.1,2638.7,10.0]
[1748551636341,0.9386,2640.1,2638.6,0.19718494]
[1748551636342,0.9386,2640.1,2638.6,10.19718494]
[1748551636542,0.9386,2640.1,2638.7,10.0]
[1748551636910,0.9386,2640.1,2638.8,0.55]
[1748551637106,0.9386,2640.1,2638.8,10.55]
[1748551637311,0.9386,2640.1,2638.8,0.55]
[1748551638049,0.9386,2640.1,2638.9,10.0]
[1748551638948,0.9386,2640.1,2638.8,10.55]
[1748551639355,0.9386,2640.1,2638.9,10.0]
[1748551640914,0.9386,2640.1,2638.9,0.9103]
[1748551641116,1.042,2640.8,2639.3,0.9103]
[1748551641314,1.042,2640.8,2639.3,5.8673]
[1748551641515,1.042,2640.8,2639.4,10.0]
[1748551641777,1.042,2640.8,2639.5,0.55]
[1748551644219,0.9207,2640.7,2639.5,0.55]
[1748551648671,0.9207,2640.7,2639.5,10.0]
[1748551648830,0.9207,2640.7,2639.4,10.0]
[1748551650168,0.9207,2640.7,2639.5,10.0]
[1748551650366,0.9207,2640.7,2639.4,10.0]
[1748551650726,0.9207,2640.7,2639.5,10.0]
[1748551651367,0.9207,2640.7,2639.4,10.0]
[1748551651870,0.9207,2640.7,2639.5,0.55]
[1748551656096,0.9207,2640.7,2639.9,0.55]
[1748551656243,1.029,2641.1,2639.9,0.55]
[1748551656436,0.34929539,2641.4,2640.0,1.9738]
[1748551656749,0.34929539,2641.4,2640.1,0.55]
[1748551656949,0.34929539,2641.4,2640.3,0.55]
[1748551657150,0.34929539,2641.4,2640.2,10.0]
[1748551657514,0.34929539,2641.4,2640.3,10.55]
[1748551657648,0.34929539,2641.4,2640.4,10.0]
[1748551657974,0.34929539,2641.4,2640.3,10.55]
[1748551658146,0.34929539,2641.4,2640.4,10.0]
[1748551658486,0.34929539,2641.4,2640.3,10.55]
[1748551658684,0.34929539,2641.4,2640.4,10.0]
[1748551658877,0.34929539,2641.4,2640.5,0.55]
[1748551659038,1.029,2642.3,2640.7,0.55]
[1748551659237,1.029,2642.3,2640.7,1.579]
[1748551660868,1.029,2642.3,2640.9,0.55]
[1748551662497,0.1324,2642.2,2640.9,0.55]
[1748551664574,0.1324,2642.2,2641.0,10.0]
[1748551664771,0.1324,2642.2,2640.9,10.55]
[1748551665188,0.1324,2642.2,2641.0,2.93745556]
[1748551665516,0.1324,2642.2,2640.9,10.0]
[1748551665800,0.1324,2642.2,2640.8,10.9148]
[1748551666102,0.1324,2642.2,2640.9,10.0]
[1748551666665,0.1324,2642.2,2641.0,10.0]
[1748551666998,0.1324,2642.2,2640.9,10.0]
[1748551667659,0.1324,2642.2,2641.0,10.0]
[1748551668098,0.1324,2642.2,2641.2,0.55]
[1748551671277,0.1324,2642.2,2641.0,10.0]
[1748551671485,0.1324,2642.2,2641.1,10.0]
[1748551671721,0.1324,2642.2,2641.0,10.0]
[1748551671867,0.1324,2642.2,2640.9,2.80193878]
[1748551671868,0.1324,2642.2,2641.1,10.0]
[1748551672209,0.1324,2642.2,2641.0,10.0]
[1748551673129,0.1324,2642.2,2641.1,10.0]
[1748551673698,0.1324,2642.2,2641.0,10.0]
[1748551674022,0.1324,2642.2,2641.1,10.0]
[1748551675010,0.1324,2642.2,2641.1,3.30304682]
[1748551675179,0.1324,2642.2,2641.0,10.55]
[1748551675381,0.1324,2642.2,2641.0,10.0]
[1748551675579,0.1324,2642.2,2641.1,10.0]
[1748551677465,0.1324,2642.2,2641.0,10.0]
[1748551678093,0.1324,2642.2,2641.1,10.0]
[1748551678495,0.1324,2642.2,2641.0,10.0]
[1748551678809,0.1324,2642.2,2641.1,10.0]
[1748551679480,0.1324,2642.2,2641.0,10.9798]
[1748551679689,0.1324,2642.2,2641.1,10.0]
[1748551680110,0.1324,2642.2,2641.0,10.9798]
[1748551680983,0.1324,2642.2,2641.1,10.0]
[1748551681692,0.1324,2642.2,2641.1,10.3784]
[1748551681896,0.1324,2642.2,2641.2,10.0]
[1748551682637,0.1324,2642.2,2641.2,0.55]
[1748551683443,0.1324,2642.2,2641.2,10.0]
[1748551684113,0.1324,2642.2,2641.1,3.36734418]
[1748551684305,0.1324,2642.2,2641.1,3.74574418]
[1748551684506,0.1324,2642.2,2641.2,0.47255442]
[1748551685108,0.1324,2642.2,2641.3,0.55]
[1748551686022,0.1324,2642.2,2641.3,0.9284]
[1748551687438,0.1324,2642.2,2641.3,1.9484]
[1748551688909,1.02,2642.8,2641.3,1.9484]
[1748551689146,1.02,2642.8,2641.5,10.0]
[1748551689546,1.02,2642.8,2641.4,10.40283166]
[1748551689958,1.02,2642.8,2641.6,0.55]
[1748551690524,1.02,2642.8,2641.5,11.77293878]
[1748551690751,1.02,2642.8,2641.5,1.77293878]
[1748551691063,1.02,2642.8,2641.6,0.47255442]
[1748551691868,1.02,2642.8,2641.1,10.0]
[1748551692025,1.02,2642.8,2641.2,10.0]
[1748551692427,1.02,2642.8,2641.2,0.55]
[1748551692669,1.02,2642.8,2641.4,0.55]
[1748551693053,1.02,2642.8,2641.3,10.0]
[1748551693258,1.02,2642.8,2641.4,10.0]
[1748551693656,1.02,2642.8,2641.4,0.9816]
[1748551696256,1.02,2642.8,2641.5,1.29765911]
[1748551696655,1.02,2642.8,2641.6,10.0]
[1748551697098,1.02,2642.8,2641.1,10.0]
[1748551697399,1.02,2642.8,2641.2,10.0]
[1748551697797,1.02,2642.8,2641.1,10.3784]
[1748551697977,1.02,2642.8,2641.3,0.55]
[1748551698713,1.02,2642.8,2641.2,0.55]
[1748551699912,0.55,2642.7,2641.0,10.0]
[1748551700422,0.55,2642.7,2640.9,0.79112649]
[1748551700602,0.55,2642.7,2640.8,10.0]
[1748551700777,0.55,2642.7,2640.7,10.19710775]
[1748551700979,0.55,2642.7,2640.7,10.57550775]
[1748551701203,0.55,2642.7,2640.8,10.0]
[1748551701604,0.55,2643.1,2640.8,10.0]
[1748551701812,4.7,2643.2,2640.8,10.0]
[1748551701813,0.55,2642.9,2640.8,0.9284]
[1748551702018,1.02,2642.8,2640.8,0.9284]
[1748551702220,1.02,2642.8,2640.8,1.8577]
[1748551702410,0.55,2643.1,2640.8,1.8577]
[1748551702596,0.55,2643.1,2641.0,10.55]
[1748551702597,1.02,2642.7,2641.0,10.55]
[1748551702812,1.02,2642.7,2641.0,0.55]
[1748551706928,1.02,2642.7,2641.0,10.0]
[1748551707811,1.02,2642.7,2640.9,10.3784]
[1748551708212,1.02,2642.7,2641.0,10.0]
[1748551708512,1.02,2642.7,2640.9,10.3784]
[1748551708707,1.02,2642.7,2641.0,10.0]
[1748551709346,1.02,2642.7,2640.9,10.3784]
[1748551709749,1.02,2642.7,2641.0,10.0]
[1748551710157,0.55,2642.6,2641.0,10.0]
[1748551710376,0.55,2642.6,2640.8,0.19717003]
[1748551716670,1.02,2642.7,2640.9,0.55]
[1748551717173,1.02,2642.7,2640.9,0.9284]
[1748551717357,1.02,2642.7,2641.0,2.40421185]
[1748551718395,1.02,2642.7,2641.0,1.9703]
[1748551718611,1.02,2642.7,2641.7,0.42945517]
[1748551720894,1.02,2642.7,2641.6,0.42945517]
[1748551721400,1.02,2642.7,2641.7,0.42945517]
[1748551723698,0.55,2642.6,2641.6,0.42945517]
[1748551724200,1.02,2642.7,2641.6,0.42945517]
[1748551724563,0.19719174,2643.0,2641.7,0.9265]
[1748551724761,1.017,2643.7,2642.2,0.42945517]
[1748551724957,1.017,2643.7,2642.4,0.42945517]
[1748551725157,1.017,2643.7,2641.5,1.017]
[1748551725158,0.55,2643.5,2642.0,0.42945517]
[1748551725667,0.9185,2643.6,2642.1,0.42945517]
[1748551725864,0.55,2643.5,2642.1,0.42945517]
[1748551726098,0.55,2643.5,2642.2,0.42945517]
[1748551726779,0.55,2643.5,2642.1,0.42945517]
[1748551727572,0.55,2643.5,2641.7,10.0]
[1748551727768,0.55,2643.5,2641.6,10.0]
[1748551728179,0.55,2643.5,2641.5,2.034]
[1748551728180,0.55,2643.5,2641.7,10.0]
[1748551728507,0.55,2643.5,2641.6,10.0]
[1748551728711,0.55,2643.5,2641.7,10.0]
[1748551729761,0.55,2643.5,2641.6,10.0]
[1748551729955,0.55,2643.5,2641.7,10.0]
[1748551730783,0.55,2643.5,2641.8,10.0]
[1748551731100,0.55,2643.5,2641.7,10.0]
[1748551731306,0.55,2643.5,2641.8,10.0]
[1748551731688,0.55,2643.5,2641.7,10.0]
[1748551732074,0.55,2643.5,2641.8,10.0]
[1748551732275,0.55,2643.5,2641.5,1.017]
[1748551732276,0.55,2643.3,2641.5,1.017]
[1748551732588,4.7,2643.4,2640.9,1.21417805]
[1748551732589,0.55,2643.1,2640.9,1.21417805]
[1748551732831,0.55,2642.9,2640.9,1.21417805]
[1748551737008,0.55,2642.9,2641.0,10.0]
[1748551737207,0.55,2642.9,2641.1,10.0]
[1748551737821,0.55,2642.9,2641.0,10.0]
[1748551738355,0.55,2642.9,2640.9,1.21417805]
[1748551738356,0.55,2642.7,2640.9,0.19717805]
[1748551742453,0.55,2642.7,2640.9,0.57557805]
[1748551742811,0.55,2642.7,2641.0,10.0]
[1748551743732,0.55,2642.7,2640.9,10.57557805]
[1748551744557,0.55,2642.8,2641.0,10.0]
[1748551744715,0.55,2642.8,2641.0,1.02]
[1748551749534,0.55,2642.6,2641.0,1.02]
[1748551751775,1.02,2642.7,2641.1,0.55]
[1748551752073,1.02,2642.7,2641.2,10.0]
[1748551752273,1.02,2642.7,2641.1,10.55]
[1748551752639,1.02,2642.7,2641.2,10.0]
[1748551753240,1.02,2642.7,2641.1,10.55]
[1748551753469,1.02,2642.7,2641.3,10.0]
[1748551753750,1.02,2642.7,2641.2,10.0]
[1748551754665,1.02,2642.7,2641.3,10.0]
[1748551755037,0.47,2643.3,2641.6,0.55]
[1748551755242,1.9385,2643.6,2641.9,10.0]
[1748551755447,1.9385,2643.6,2641.9,3.895]
[1748551759165,0.55,2643.5,2641.8,10.0]
[1748551759403,0.55,2643.5,2641.7,4.912]
[1748551759722,1.9385,2643.6,2641.9,10.0]
[1748551759723,0.55,2643.3,2641.9,10.0]
[1748551761268,0.55,2643.3,2641.8,10.0]
[1748551761670,0.55,2643.3,2641.9,10.0]
[1748551762263,0.55,2643.3,2641.8,10.0]
[1748551762691,0.55,2643.3,2641.9,10.0]
[1748551763127,0.55,2643.3,2641.8,10.0]
[1748551763270,0.55,2643.3,2641.7,1.02]
[1748551768030,0.55,2643.3,2641.5,10.0]
[1748551768234,0.55,2643.3,2641.4,10.0]
[1748551768539,1.016,2643.2,2641.5,10.0]
[1748551768725,1.016,2643.2,2641.4,10.0]
[1748551769125,1.016,2643.2,2641.5,10.0]
[1748551769498,1.016,2643.2,2641.4,10.0]
[1748551769697,0.55,2643.1,2641.5,10.0]
[1748551770639,0.55,2643.1,2641.4,10.0]
[1748551771208,0.55,2643.1,2641.5,10.0]
[1748551771611,0.55,2643.1,2641.4,10.0]
[1748551772199,0.55,2643.1,2641.5,10.0]
[1748551772598,0.55,2643.1,2641.4,10.0]
[1748551773541,0.55,2643.1,2641.5,10.0]
[1748551774044,0.55,2643.1,2641.4,10.0]
[1748551774651,0.55,2643.1,2641.5,10.0]
[1748551775206,0.55,2643.1,2641.4,10.0]
[1748551776115,0.55,2643.1,2641.5,10.0]
[1748551776416,0.55,2643.1,2641.4,10.0]
[1748551776616,0.55,2643.1,2641.5,10.0]
[1748551777247,0.55,2643.1,2641.4,2.72689395]
[1748551777453,0.55,2643.1,2641.3,4.906]
[1748551777760,0.55,2643.1,2641.4,10.0]
[1748551777992,0.55,2643.1,2641.5,10.0]
[1748551778126,0.55,2643.1,2641.6,10.0]
[1748551778452,0.55,2643.1,2641.5,10.0]
[1748551778656,0.55,2643.1,2641.6,10.0]
[1748551778971,0.55,2643.1,2641.5,10.0]
[1748551779274,1.016,2643.2,2641.6,0.9379]
[1748551779424,1.016,2643.2,2641.6,1.3163]
[1748551780268,1.016,2643.2,2641.7,0.55]
[1748551780475,1.016,2643.2,2641.7,10.55]
[1748551780633,1.016,2643.2,2641.8,10.0]
[1748551780815,1.016,2643.2,2642.2,0.42968236]
[1748551783085,0.55,2643.1,2642.2,0.42968236]
[1748551783263,0.55,2643.1,2641.8,10.0]
[1748551783264,0.55,2643.1,2641.8,0.42968236]
[1748551783560,0.55,2643.1,2641.6,0.42968236]
[1748551783765,5.25,2643.1,2641.6,0.42968236]
[1748551783944,0.55,2642.9,2641.5,0.42968236]
[1748551784549,0.55,2642.9,2641.6,0.42968236]
[1748551787128,0.6266,2643.0,2641.6,0.42968236]
[1748551787336,1.016,2642.9,2641.7,0.42968236]
[1748551787646,1.65026,2642.9,2641.7,0.42968236]
[1748551788439,1.016,2643.2,2641.7,0.42968236]
[1748551788644,1.016,2643.2,2642.0,0.42968236]
[1748551788827,1.016,2643.2,2642.1,0.42968236]
[1748551790943,1.016,2643.2,2641.6,0.9695]
[1748551801488,0.9047,2643.1,2641.6,0.55]
[1748551802025,0.9047,2643.1,2641.5,10.0]
[1748551802026,0.55,2643.0,2641.5,10.0]
[1748551802192,0.55,2642.8,2641.3,1.96995376]
[1748551802386,0.9047,2642.7,2641.3,1.96995376]
[1748551803213,0.9047,2642.7,2641.3,2.34815376]
[1748551803419,0.9047,2642.7,2641.3,0.57521498]
[1748551804640,0.9047,2642.7,2641.4,1.349]
[1748551805054,0.9047,2642.7,2641.5,0.55]
[1748551805341,0.9047,2642.7,2641.5,10.55]
[1748551806139,0.9047,2642.7,2641.6,10.0]
[1748551806703,0.9047,2642.7,2641.5,10.55]
[1748551806902,0.9047,2642.7,2641.6,1.021]
[1748551807150,0.9047,2642.7,2641.5,10.55]
[1748551807308,0.9047,2642.7,2641.7,1.021]
[1748551807630,0.9047,2642.7,2641.6,10.0]
[1748551808011,0.9047,2642.7,2641.5,10.0]
[1748551808629,0.9047,2642.7,2641.6,10.0]
[1748551809255,0.9047,2642.7,2641.5,10.0]
[1748551809634,0.9047,2642.7,2641.4,1.3992]
[1748551809635,0.9047,2642.7,2641.6,10.0]
[1748551809835,0.9047,2642.7,2641.5,10.0]
[1748551810035,0.9047,2642.7,2641.6,0.9316]
[1748551811578,0.9047,2642.7,2641.7,0.55]
[1748551815372,0.9047,2642.7,2641.8,10.0]
[1748551815780,0.9047,2642.7,2641.7,10.55]
[1748551816174,0.9047,2642.7,2641.8,10.0]
[1748551817046,0.9047,2642.7,2641.7,10.55]
[1748551817487,0.29041364,2642.7,2641.7,10.55]
[1748551818072,0.29041364,2642.7,2641.8,1.021]
[1748551818489,1.021,2643.0,2641.8,1.021]
[1748551820358,0.2957,2642.9,2641.9,10.0]
[1748551820560,0.2957,2642.9,2641.8,11.021]
[1748551820992,0.2957,2642.9,2641.9,10.0]
[1748551821428,0.2957,2642.9,2642.0,0.55]
[1748551821562,1.021,2643.9,2642.2,0.55]
[1748551821892,1.021,2643.9,2642.3,0.19185]
[1748551825267,1.021,2643.9,2642.3,10.19185]
[1748551825692,1.021,2643.9,2642.4,10.0]
[1748551826197,1.021,2643.9,2642.5,1.02]
[1748551827298,1.021,2643.9,2642.5,2.0058]
[1748551828475,1.021,2643.9,2642.5,1.02]
[1748551829324,1.021,2643.9,2642.3,10.0]
[1748551829476,1.021,2643.9,2642.3,3.878]
[1748551829676,1.021,2643.9,2642.5,10.0]
[1748551830106,1.021,2643.9,2642.4,10.0]
[1748551830481,1.021,2643.9,2642.5,10.0]
[1748551832413,1.021,2643.9,2642.5,2.29505451]
[1748551832714,1.021,2643.9,2642.4,10.0]
[1748551832875,1.021,2643.9,2642.2,1.9402]
[1748551833075,1.021,2643.9,2642.4,10.0]
[1748551833301,0.55,2643.8,2642.3,0.19402]
[1748551833505,0.55,2643.8,2642.4,10.0]
[1748551834598,0.55,2643.8,2642.5,10.0]
[1748551834915,0.55,2643.8,2642.4,10.0]
[1748551835277,0.55,2643.8,2642.2,0.3782]
[1748551835278,0.55,2643.8,2642.3,3.874]
[1748551838693,0.55,2643.8,2642.2,5.2622]
[1748551839707,0.55,2643.8,2642.2,1.012]
[1748551845424,0.55,2643.8,2641.8,0.57516772]
[1748551845425,0.55,2643.8,2641.8,1.58716772]
[1748551847300,0.55,2643.8,2641.8,1.20896772]
[1748551847519,0.55,2643.6,2641.8,0.19696772]
[1748551847857,8.571,2643.7,2641.5,0.19737616]
[1748551847858,0.55,2643.4,2641.5,0.19737616]
[1748551847991,3.871,2643.7,2641.0,0.55]
[1748551847992,0.55,2643.2,2641.0,0.55]
[1748551848349,0.55,2643.2,2640.9,10.0]
[1748551848350,1.537,2643.1,2641.2,0.1970702]
[1748551864177,5.41,2643.1,2641.2,0.1970702]
[1748551864459,5.41,2643.1,2641.2,0.5752702]
[1748551864813,5.41,2643.1,2641.2,0.1970702]
[1748551865406,0.55,2643.0,2641.2,0.1970702]
[1748551865610,0.55,2642.8,2641.2,0.1970702]
[1748551867713,0.55,2642.8,2641.0,0.55]
[1748551868136,0.55,2642.8,2641.0,0.9282]
[1748551868857,1.009,2642.7,2641.0,0.9282]
[1748551869846,1.009,2642.7,2641.0,1.8872]
[1748551871273,1.009,2642.7,2641.1,0.58662668]
[1748551872753,0.0857,2642.6,2641.1,0.58662668]
[1748551874081,0.0857,2642.6,2641.0,0.3782]
[1748551874280,0.0857,2642.6,2641.1,0.3782]
[1748551875273,0.0857,2642.6,2641.0,0.3782]
[1748551875467,0.0857,2642.6,2641.1,0.3782]
[1748551876618,0.0857,2642.6,2641.0,0.3782]
[1748551877127,0.0857,2642.6,2641.1,10.3782]
[1748551877398,0.0857,2642.6,2641.1,0.3782]
[1748551878651,1.009,2642.7,2641.0,10.0]
[1748551878652,0.55,2642.3,2641.0,10.0]
[1748551878997,0.55,2641.6,2640.2,1.009]
[1748551879289,0.9868,2641.7,2640.2,1.009]
[1748551879290,0.9868,2641.4,2640.2,1.009]
[1748551885357,0.9368,2641.4,2640.2,1.009]
[1748551885864,0.9368,2641.4,2639.8,2.89142866]
[1748551886067,0.19458,2641.3,2639.9,10.0]
[1748551886451,0.19458,2641.3,2639.8,10.0]
[1748551887075,0.19458,2641.3,2639.9,10.0]
[1748551887488,0.19458,2641.3,2639.8,10.0]
[1748551888111,0.19458,2641.3,2639.9,10.0]
[1748551888473,0.9589,2641.2,2639.8,10.0]
[1748551889872,0.9589,2641.2,2639.9,10.0]
[1748551890502,0.9589,2641.2,2639.8,10.0]
[1748551890920,0.9589,2641.2,2640.0,0.9779]
[1748551893314,0.9589,2641.2,2640.1,0.55]
[1748551893496,4.7,2642.0,2640.3,0.55]
[1748551893497,1.009,2641.9,2640.3,0.55]
[1748551893815,1.479,2641.9,2640.3,0.55]
[1748551894009,1.479,2641.9,2640.2,0.55]
[1748551895214,1.479,2641.9,2640.3,10.0]
[1748551895522,1.009,2641.9,2640.3,10.0]
[1748551895820,1.009,2641.9,2640.5,10.0]
[1748551895979,1.009,2641.9,2640.4,10.0]
[1748551896177,1.009,2641.9,2640.4,11.009]
[1748551896393,0.0358,2641.8,2640.5,10.0]
[1748551897715,0.0358,2641.8,2640.4,1.009]
[1748551897716,0.0358,2641.8,2640.4,11.009]
[1748551897886,0.0358,2641.8,2640.5,10.0]
[1748551898080,0.0358,2641.8,2640.6,10.0]
[1748551898283,0.0358,2641.8,2640.6,0.9339]
[1748551899287,0.0358,2641.8,2640.6,10.9339]
[1748551899489,0.0358,2641.8,2640.7,10.0]
[1748551901014,0.0358,2641.8,2640.6,0.9339]
[1748551901215,0.0358,2641.8,2640.7,10.0]
[1748551901414,0.0358,2641.8,2640.6,10.0]
[1748551901720,0.0358,2641.8,2640.7,10.0]
[1748551901883,0.0358,2641.8,2640.4,2.0225]
[1748551901884,0.0358,2641.8,2640.4,1.009]
[1748551902079,0.0358,2641.8,2640.4,11.009]
[1748551902487,0.0358,2641.8,2640.5,10.0]
[1748551902926,0.0358,2641.8,2640.4,11.009]
[1748551903231,0.0358,2641.8,2640.5,10.0]
[1748551903539,0.0358,2641.8,2640.4,11.009]
[1748551903895,0.0358,2641.8,2640.5,10.0]
[1748551904139,0.0358,2641.8,2640.4,1.009]
[1748551927463,0.0358,2641.8,2640.5,0.55]
[1748551927681,0.0358,2641.8,2640.6,10.0]
[1748551928237,0.0358,2641.8,2640.4,2.78193878]
[1748551928238,0.0358,2641.8,2640.7,10.0]
[1748551928674,0.0358,2641.8,2640.6,10.0]
[1748551928990,0.0358,2641.8,2640.7,10.0]
[1748551929160,0.0358,2641.8,2640.5,1.008]
[1748551929161,0.0358,2641.8,2640.6,10.0]
[1748551929493,0.0358,2641.8,2640.7,10.0]
[1748551929667,0.0358,2641.8,2640.6,10.0]
[1748551930290,0.0358,2641.8,2640.5,1.008]
[1748551930446,0.0358,2641.8,2640.5,1.249]
[1748551930779,0.0358,2641.8,2640.5,1.008]
[1748551932301,0.0358,2641.8,2640.4,1.77293878]
[1748551932952,0.0358,2641.8,2640.3,3.90486729]
[1748551933293,0.0358,2641.8,2640.3,10.0]
[1748551933699,0.0358,2641.8,2640.2,11.008]
[1748551933924,0.0358,2641.8,2640.3,10.0]
[1748551935411,0.6379,2642.1,2640.3,10.0]
[1748551935619,0.0879,2642.0,2640.2,1.008]
[1748551937015,0.0879,2641.7,2640.2,1.008]
[1748551941433,0.0879,2641.7,2640.3,11.0194]
[1748551941722,0.0879,2641.7,2640.2,1.008]
[1748551941723,0.0879,2641.7,2640.5,10.0]
[1748551941878,4.7,2642.9,2640.2,1.008]
[1748551941879,1.008,2642.3,2640.7,1.0194]
[1748551942076,0.55,2642.2,2640.5,10.0]
[1748551942923,0.55,2642.2,2640.6,10.0]
[1748551943075,0.55,2642.2,2640.5,10.0]
[1748551943742,0.55,2642.2,2640.6,10.0]
[1748551944019,0.55,2642.2,2640.6,1.008]
[1748551947223,0.55,2642.2,2640.6,2.0451]
[1748551948493,0.55,2642.2,2642.1,3.78486809]
[1748551950435,1.008,2642.3,2642.2,3.78472485]
[1748551950744,1.558,2642.3,2642.2,3.78472485]
[1748551960209,6.258,2642.3,2642.2,3.78472485]
[1748551960430,6.8838,2642.3,2642.2,3.78472485]
[1748551963760,10.7538,2642.3,2642.2,3.78472485]
[1748551964612,6.8838,2642.3,2642.2,3.78472485]
[1748551964813,10.7538,2642.3,2642.2,3.78472485]
[1748551965832,6.8838,2642.3,2642.2,3.78472485]
[1748551966063,10.7538,2642.3,2642.2,3.78472485]
[1748551966863,0.6258,2642.3,2642.2,3.78472485]
[1748551967059,1.007,2642.5,2642.4,3.78443838]
[1748551967234,1.557,2642.5,2642.4,3.78443838]
[1748551967438,5.427,2642.5,2642.4,3.78443838]
[1748551969044,1.557,2642.5,2642.4,3.78443838]
[1748551969341,5.427,2642.5,2642.4,3.78443838]
[1748551969524,5.9697,2642.5,2642.4,3.78443838]
[1748551977332,2.0997,2642.5,2642.4,3.78443838]
[1748551977541,1.557,2642.5,2642.4,3.78443838]
[1748551977744,5.426,2642.5,2642.4,3.78443838]
[1748551989851,5.426,2642.5,2642.2,3.78472485]
[1748551989852,0.55,2642.4,2642.2,3.1296619]
[1748551990171,0.55,2642.4,2642.3,3.78455415]
[1748551993169,0.55,2642.4,2642.0,3.21706141]
[1748551993469,0.5426,2642.3,2642.2,3.78472485]
[1748551993669,1.0926,2642.3,2642.2,3.78472485]
[1748551994370,4.418,2642.3,2642.2,3.78472485]
[1748551994945,4.7,2642.8,2642.7,3.78400877]
[1748551995149,9.574,2642.8,2642.7,3.78400877]
[1748551995472,10.124,2642.8,2642.7,3.78400877]
[1748551995671,9.574,2642.8,2642.7,3.78400877]
[1748551995874,11.0814,2642.8,2642.7,3.78400877]
[1748552002306,7.2134,2642.8,2642.7,3.78400877]
[1748552002469,11.0814,2642.8,2642.7,3.78400877]
[1748552006310,11.0804,2642.8,2642.7,3.78400877]
[1748552007015,7.2134,2642.8,2642.7,3.78400877]
[1748552007343,0.55,2642.7,2642.6,3.78405236]